bitfinex/quotes_ETHUSD_20250807
["timestamp","ask_amount","ask_price","bid_price","bid_amount"]
[1754577176062,0.002,3820.0,3819.9,3.19856957]
[1754577176272,0.002,3820.0,3819.9,3.82030536]
[1754577176444,0.002,3820.0,3819.9,3.33072667]
[1754577178278,0.002,3820.0,3819.9,6.81332667]
[1754577178979,0.002,3820.0,3819.9,6.33072667]
[1754577179464,0.002,3820.0,3819.9,7.26902667]
[1754577179663,0.002,3820.0,3819.9,18.15780148]
[1754577179982,0.002,3820.0,3819.9,40.64730548]
[1754577180184,0.002,3820.0,3819.9,38.83946348]
[1754577180486,0.002,3820.0,3819.9,30.97513648]
[1754577180683,0.002,3820.0,3819.9,30.84393648]
[1754577180885,0.002,3820.8,3820.7,2.61732143]
[1754577181085,0.002,3820.8,3820.7,10.54225357]
[1754577181285,0.002,3820.8,3820.7,7.92493214]
[1754577181497,0.002,3820.8,3820.7,0.1312]
[1754577181793,0.4984,3820.8,3820.7,0.1312]
[1754577181979,0.002,3820.8,3820.7,0.1312]
[1754577182683,0.002,3820.8,3820.7,24.95424664]
[1754577182860,0.002,3820.8,3820.7,14.01094343]
[1754577183062,0.002,3820.8,3820.7,11.93835866]
[1754577184060,0.002,3820.8,3820.7,27.07977066]
[1754577184259,0.002,3820.8,3820.7,29.25096966]
[1754577184493,0.002,3820.9,3820.8,5.61725293]
[1754577184662,0.002,3820.9,3820.8,20.47786321]
[1754577184858,0.002,3821.2,3821.0,3.0]
[1754577185061,0.002,3821.6,3821.3,3.0]
[1754577185259,0.002,3821.6,3821.5,5.61677351]
[1754577185570,0.002,3821.6,3821.5,10.31194351]
[1754577185765,0.002,3821.6,3821.5,8.67816716]
[1754577185965,0.002,3821.6,3821.5,3.42964565]
[1754577186169,0.002,3821.6,3821.5,0.1312]
[1754577186366,0.002,3821.6,3820.0,0.4826]
[1754577186367,0.9264,3821.6,3820.0,0.4826]
[1754577186566,0.002,3821.6,3820.7,10.88877481]
[1754577186767,3.11511561,3821.6,3820.8,7.324872]
[1754577186970,3.11511561,3821.6,3820.7,2.61732143]
[1754577187294,3.11511561,3821.6,3821.2,2.61692721]
[1754577187295,0.002,3821.6,3821.2,2.61692721]
[1754577187500,0.002,3821.6,3821.3,7.280333]
[1754577187670,0.002,3821.6,3821.0,4.523]
[1754577187671,0.002,3821.6,3821.1,2.993322]
[1754577187875,0.002,3821.6,3821.2,2.15048743]
[1754577188083,0.002,3821.6,3821.0,4.523]
[1754577188602,0.4984,3821.6,3821.0,4.523]
[1754577188797,3.11512654,3821.6,3821.0,4.523]
[1754577189108,0.4984,3821.6,3821.0,4.523]
[1754577189259,0.002,3821.6,3821.0,4.9753]
[1754577189464,0.002,3821.6,3821.1,3.0]
[1754577189780,0.002,3821.6,3821.2,2.61697895]
[1754577190611,0.002,3821.6,3821.3,4.98585457]
[1754577190811,0.002,3821.6,3821.4,1.06028335]
[1754577190966,0.002,3821.6,3821.2,2.61695907]
[1754577191167,0.002,3821.6,3821.4,2.6168186]
[1754577191365,0.002,3821.6,3820.0,10.88877481]
[1754577191617,0.9244,3821.5,3819.4,10.88877481]
[1754577191897,0.002,3821.6,3820.1,2.61772818]
[1754577191898,2.61720175,3820.9,3820.1,2.61772818]
[1754577192062,0.9244,3820.8,3819.8,4.507]
[1754577192265,0.9244,3820.7,3819.8,4.507]
[1754577192503,2.61711902,3821.0,3819.8,4.507]
[1754577192504,0.4964,3820.6,3819.8,4.507]
[1754577192662,0.428,3821.0,3820.4,7.94904086]
[1754577193001,2.61711593,3821.0,3820.4,5.33155086]
[1754577193186,0.4964,3820.9,3820.4,4.84686442]
[1754577193500,0.428,3820.8,3820.4,4.84686442]
[1754577193691,2.61745844,3820.5,3820.4,4.84686442]
[1754577194011,0.9244,3820.5,3820.4,4.84686442]
[1754577194307,3.54185844,3820.5,3820.4,4.84686442]
[1754577194882,4.15777782,3820.5,3820.4,4.84686442]
[1754577195084,2.61773252,3820.1,3820.0,0.001]
[1754577195599,3.54213252,3820.1,3820.0,0.001]
[1754577196288,3.69300392,3820.1,3820.0,0.001]
[1754577196497,4.24300392,3820.1,3820.0,0.001]
[1754577196692,9.32516897,3820.1,3820.0,0.001]
[1754577196896,9.85549757,3820.1,3820.0,0.001]
[1754577197833,9.85149757,3820.1,3820.0,0.001]
[1754577198801,9.85149757,3820.1,3820.0,1e-08]
[1754577199580,5.35949757,3820.1,3820.0,1e-08]
[1754577199782,9.84549757,3820.1,3820.0,1e-08]
[1754577199987,5.35949757,3820.1,3820.0,1e-08]
[1754577200187,5.37916897,3820.1,3820.0,1e-08]
[1754577200393,9.86416897,3820.1,3820.0,1e-08]
[1754577200695,9.84449757,3820.1,3820.0,1e-08]
[1754577201274,9.94937357,3820.1,3820.0,1e-08]
[1754577202075,9.94937357,3820.1,3819.6,0.001]
[1754577202076,3.16800664,3819.7,3819.6,1e-08]
[1754577202276,6.29920664,3819.7,3819.6,1e-08]
[1754577202511,7.22360664,3819.7,3819.6,1e-08]
[1754577203926,11.69460664,3819.7,3819.6,1e-08]
[1754577204334,3.77849264,3819.7,3819.6,1e-08]
[1754577204544,7.58540664,3819.7,3819.6,1e-08]
[1754577204834,7.58440664,3819.7,3819.6,1e-08]
[1754577205241,7.08600664,3819.7,3819.6,1e-08]
[1754577205388,8.67946969,3819.7,3819.6,1e-08]
[1754577205586,9.10746969,3819.7,3819.6,1e-08]
[1754577205784,9.65746969,3819.7,3819.6,1e-08]
[1754577206205,5.18846969,3819.7,3819.6,1e-08]
[1754577206435,7.08300664,3819.7,3819.6,1e-08]
[1754577206583,2.61800664,3819.7,3819.6,1e-08]
[1754577206790,7.08300664,3819.7,3819.6,1e-08]
[1754577206986,0.10486,3820.4,3819.6,1e-08]
[1754577207238,2.61800664,3819.7,3819.6,1e-08]
[1754577207451,7.08100664,3819.7,3819.6,1e-08]
[1754577207925,7.57740664,3819.7,3819.6,1e-08]
[1754577208434,2.61800664,3819.7,3819.6,1e-08]
[1754577208645,3.07172137,3820.9,3819.6,1e-08]
[1754577208791,4.459,3820.3,3819.6,0.47290001]
[1754577208993,2.61794426,3819.8,3819.6,0.92750001]
[1754577209308,4.458,3819.7,3819.6,0.92750001]
[1754577210190,4.458,3820.1,3819.6,0.47290001]
[1754577210385,6.285,3820.5,3819.7,0.9275]
[1754577210638,0.786319,3821.1,3819.8,0.02617938]
[1754577210933,0.002,3821.2,3820.6,2.61732796]
[1754577211098,0.002,3821.2,3820.9,2.61717248]
[1754577211298,4.455,3821.2,3820.7,0.9275]
[1754577211487,4.455,3821.2,3820.2,10.88877481]
[1754577211488,4.455,3821.2,3820.8,0.9275]
[1754577211688,2.61705497,3821.1,3820.8,0.9275]
[1754577211912,7.07200033,3821.2,3820.8,0.9275]
[1754577212109,2.61900033,3821.2,3820.8,0.9275]
[1754577212427,4.452,3821.1,3820.3,0.4729]
[1754577212610,2.61716158,3821.0,3820.3,0.4729]
[1754577213017,4.452,3821.1,3820.3,0.4729]
[1754577213331,0.002,3821.2,3821.0,2.61710903]
[1754577213643,0.002,3821.2,3821.1,3.54454744]
[1754577214547,0.002,3821.2,3821.1,28.86365391]
[1754577214721,0.002,3821.2,3821.1,39.00549144]
[1754577215257,0.002,3821.6,3821.1,39.00549144]
[1754577215258,0.002,3821.6,3821.5,2.61677351]
[1754577215405,0.002,3821.6,3821.5,33.46630458]
[1754577215736,0.002,3821.8,3821.7,5.61663657]
[1754577215942,0.002,3821.8,3821.7,19.05922638]
[1754577216094,0.002,3821.8,3821.7,20.11792638]
[1754577216504,0.002,3821.8,3821.7,30.49521138]
[1754577216745,0.002,3821.8,3821.7,33.17909066]
[1754577216903,0.002,3821.8,3821.7,32.37958166]
[1754577217105,0.002,3821.8,3821.7,30.73794566]
[1754577217526,0.002,3821.8,3821.7,37.72007466]
[1754577217730,0.002,3821.8,3821.7,36.13768166]
[1754577217938,0.002,3821.8,3821.7,34.17559466]
[1754577218228,0.002,3821.8,3821.7,31.00415766]
[1754577218431,0.002,3821.8,3821.7,32.48305066]
[1754577218788,0.002,3821.8,3821.7,30.62409866]
[1754577218994,0.002,3821.8,3821.7,29.26667866]
[1754577219190,0.002,3821.8,3821.7,28.86766466]
[1754577219542,0.002,3822.2,3822.1,2.61636273]
[1754577219844,0.002,3822.2,3822.1,7.428]
[1754577220157,0.002,3822.2,3822.1,3.0]
[1754577220944,0.002,3822.2,3821.8,6.14657664]
[1754577221151,0.002,3822.2,3822.1,2.61636273]
[1754577221293,0.002,3822.2,3822.1,1.34944114]
[1754577221499,0.002,3822.2,3821.9,2.61647854]
[1754577222004,0.002,3822.2,3821.9,2.61648824]
[1754577222394,0.002,3822.2,3821.8,1.71957664]
[1754577222598,0.002,3822.2,3821.9,2.61649351]
[1754577222832,0.002,3822.2,3821.8,7.33614349]
[1754577223063,0.002,3822.2,3822.0,2.61638284]
[1754577223251,0.002,3822.2,3821.9,3.79280549]
[1754577223567,0.002,3822.2,3821.9,1.17631435]
[1754577224242,0.9078,3822.1,3820.7,0.4729]
[1754577224568,2.61649964,3821.9,3821.0,2.61708797]
[1754577224765,0.4545,3822.0,3820.9,4.417]
[1754577224766,0.9078,3821.8,3820.9,4.417]
[1754577225062,2.61667316,3821.7,3821.0,3.0]
[1754577225265,0.4545,3821.6,3820.0,0.4556]
[1754577225566,0.9078,3821.6,3820.9,3.0]
[1754577225865,2.61696875,3821.3,3820.6,7.03338538]
[1754577226165,3.52451073,3821.6,3820.7,2.61730173]
[1754577226480,0.9078,3821.6,3820.6,4.416]
[1754577226666,2.61684199,3821.4,3820.6,4.416]
[1754577226865,2.61710761,3821.1,3820.4,3.0]
[1754577227031,2.61718443,3820.9,3820.2,4.41]
[1754577227238,2.61758578,3820.4,3820.0,0.001]
[1754577227567,2.61739517,3820.6,3820.0,0.001]
[1754577227732,2.61739538,3820.6,3820.0,0.001]
[1754577228173,2.61734063,3820.7,3820.0,0.001]
[1754577228386,2.61741668,3820.6,3820.0,0.001]
[1754577228532,2.61718443,3820.9,3820.0,0.70418505]
[1754577228748,3.07169147,3820.9,3820.1,2.61768569]
[1754577228978,0.4545,3820.9,3820.1,2.61773252]
[1754577229178,8.90022598,3822.3,3820.6,2.61734128]
[1754577229179,0.4545,3821.3,3820.6,2.61734128]
[1754577229381,2.61698474,3821.2,3820.5,2.61743691]
[1754577229590,14.9545,3821.3,3820.3,4.407]
[1754577229739,0.4533,3821.5,3821.1,0.1312]
[1754577229939,0.9078,3821.5,3820.8,2.61725293]
[1754577230135,3.07008084,3821.5,3821.4,0.1312]
[1754577230390,2.61711696,3821.0,3820.1,3.0]
[1754577230629,3.07041696,3821.0,3820.9,0.1312]
[1754577231198,3.07041696,3821.0,3820.1,2.61772531]
[1754577231404,3.07168443,3820.9,3820.8,0.1312]
[1754577231605,3.07168443,3820.9,3820.0,0.001]
[1754577231606,2.61727096,3820.8,3820.0,0.001]
[1754577231927,2.6174517,3820.6,3820.2,0.1312]
[1754577232124,3.65625863,3820.8,3820.2,0.1312]
[1754577232328,0.4533,3820.8,3820.0,0.001]
[1754577232489,2.61769472,3820.2,3820.0,0.001]
[1754577232687,2.61773252,3820.1,3820.0,0.001]
[1754577232944,3.07223252,3820.1,3820.0,0.001]
[1754577233102,3.52553252,3820.1,3820.0,0.001]
[1754577233303,0.9078,3820.1,3820.0,0.1322]
[1754577233491,17.11766564,3820.2,3820.0,0.1322]
[1754577233694,2.61773252,3820.1,3820.0,0.1322]
[1754577233915,0.4545,3820.5,3820.0,0.1322]
[1754577234141,3.07218813,3820.2,3820.0,0.001]
[1754577234526,3.07218813,3820.2,3820.1,0.1312]
[1754577234852,0.4533,3820.4,3820.1,0.1312]
[1754577235009,14.9533,3820.7,3820.1,0.1312]
[1754577235215,0.4545,3820.3,3820.0,0.001]
[1754577235551,0.4545,3820.8,3820.6,0.1312]
[1754577235710,0.4545,3820.8,3820.2,0.1312]
[1754577235916,3.07176789,3820.8,3820.7,0.1312]
[1754577236147,3.52506789,3820.8,3820.7,0.1312]
[1754577236551,0.9078,3820.8,3820.7,0.1312]
[1754577236856,2.61716249,3821.0,3820.7,0.1312]
[1754577237048,2.61716249,3821.0,3820.9,0.1312]
[1754577237349,2.61716249,3821.0,3820.0,3.09164168]
[1754577237350,0.4545,3821.0,3820.2,2.61765381]
[1754577237527,3.07161593,3821.0,3820.9,0.1312]
[1754577237756,3.52491593,3821.0,3820.9,0.1312]
[1754577238257,7.01006672,3821.1,3820.9,0.1312]
[1754577238548,3.53221593,3821.0,3820.9,0.1312]
[1754577238727,3.55188733,3821.0,3820.9,0.1312]
[1754577239128,2.61755422,3820.4,3820.0,0.001]
[1754577239353,2.61755422,3820.4,3820.3,0.1312]
[1754577239672,2.61759547,3820.3,3820.0,0.001]
[1754577239823,3.09573758,3820.4,3820.1,0.1312]
[1754577240025,0.77555815,3820.3,3820.1,0.1312]
[1754577240225,0.33865815,3820.3,3820.1,0.1312]
[1754577240552,0.77555815,3820.3,3820.1,0.1312]
[1754577240850,18.887,3820.5,3820.1,0.1312]
[1754577241054,2.61766305,3820.3,3820.1,0.1312]
[1754577241247,2.61754657,3820.4,3820.1,0.1312]
[1754577241451,2.61754657,3820.4,3820.0,0.001]
[1754577241452,2.61737752,3820.7,3820.2,0.1312]
[1754577241641,6.99832497,3820.7,3820.5,0.1312]
[1754577241840,2.61738993,3820.6,3820.0,0.001]
[1754577242022,2.61734369,3820.7,3820.4,0.1312]
[1754577242226,4.381,3820.8,3820.4,0.1312]
[1754577242432,2.6174331,3820.6,3820.4,0.1312]
[1754577242631,4.38,3820.7,3820.2,2.61862075]
[1754577242957,0.1312,3821.4,3820.6,0.1312]
[1754577243155,2.61702445,3821.2,3820.6,0.1312]
[1754577243321,2.61702445,3821.2,3820.9,0.1312]
[1754577243527,0.4782,3821.2,3820.9,0.1312]
[1754577243826,4.377,3821.1,3820.9,0.1312]
[1754577244023,2.61711593,3821.0,3820.9,0.1312]
[1754577244222,4.377,3821.1,3820.9,0.1312]
[1754577244442,2.74791592,3821.6,3821.0,0.1312]
[1754577244624,4.374,3821.5,3821.0,0.1312]
[1754577245121,4.374,3821.5,3820.9,2.61712333]
[1754577245320,0.002,3821.8,3821.4,0.1312]
[1754577245754,2.61862462,3821.8,3821.6,0.1312]
[1754577245958,0.002,3821.8,3821.6,0.1312]
[1754577246134,3.53173657,3821.7,3821.6,0.1312]
[1754577246338,3.53173657,3821.7,3820.2,3.001]
[1754577246339,2.61709182,3821.1,3820.3,2.61753772]
[1754577246561,6.98509182,3821.1,3820.8,0.1312]
[1754577246725,3.09532904,3821.0,3820.8,0.1312]
[1754577246933,2.61718443,3820.9,3820.8,0.1312]
[1754577247354,4.368,3821.1,3820.8,0.1312]
[1754577247762,2.61718443,3820.9,3820.8,0.1312]
[1754577248072,0.9151,3821.0,3820.6,0.1312]
[1754577248073,3.5322183,3821.0,3820.6,0.1312]
[1754577248276,2.6172735,3820.8,3820.2,0.001]
[1754577248574,0.9151,3820.9,3820.4,0.1312]
[1754577248863,15.4151,3820.8,3820.4,0.1312]
[1754577249278,2.61745844,3820.5,3820.4,0.1312]
[1754577249480,2.61759547,3820.3,3820.2,0.001]
[1754577250181,7.46579547,3820.3,3820.2,0.001]
[1754577250381,7.90269547,3820.3,3820.2,0.001]
[1754577250733,0.2624,3820.7,3820.2,0.001]
[1754577250940,2.61759547,3820.3,3820.2,0.001]
[1754577251259,3.57810086,3820.3,3820.2,0.001]
[1754577251437,4.62440086,3820.3,3820.2,0.001]
[1754577251639,8.02889547,3820.3,3820.2,0.001]
[1754577251968,6.98559547,3820.3,3820.2,0.001]
[1754577252677,2.61759547,3820.3,3820.2,0.001]
[1754577252976,0.2624,3820.7,3820.2,0.001]
[1754577253136,4.366,3820.6,3820.4,0.1312]
[1754577253338,4.366,3820.6,3820.4,0.32444141]
[1754577253534,4.366,3820.6,3820.5,0.1312]
[1754577254172,0.1312,3820.7,3820.5,0.5996]
[1754577254363,0.1312,3820.7,3820.6,2.61738993]
[1754577254872,0.1312,3820.7,3820.6,12.57848393]
[1754577255177,0.1312,3820.7,3820.6,15.26236321]
[1754577255848,4.363,3821.5,3821.0,2.61706777]
[1754577256255,4.363,3821.5,3821.4,0.1312]
[1754577257481,0.002,3821.8,3821.7,2.61663657]
[1754577257784,0.002,3821.8,3821.7,4.64414102]
[1754577258386,0.002,3821.8,3821.2,2.6169321]
[1754577258387,0.9171,3821.8,3820.4,0.4488]
[1754577258544,3.53368349,3821.8,3820.6,3.0]
[1754577258744,2.61664492,3821.7,3820.9,2.61714453]
[1754577258978,2.61678269,3821.5,3820.8,2.61723962]
[1754577259186,2.61678269,3821.5,3820.8,2.61724275]
[1754577259369,2.61678269,3821.5,3820.8,2.61720788]
[1754577259370,2.61877584,3821.5,3820.8,2.61720788]
[1754577259571,0.002,3821.5,3820.6,5.61736014]
[1754577259774,0.002,3821.5,3820.7,0.65345601]
[1754577259956,2.61695894,3821.3,3820.6,2.61738165]
[1754577260154,4.354,3821.2,3820.6,2.61738165]
[1754577260359,4.354,3821.2,3820.7,2.61732084]
[1754577260555,4.354,3821.2,3820.6,2.61737973]
[1754577260891,2.61717037,3821.0,3820.3,2.61754517]
[1754577261189,6.97102549,3821.2,3820.5,2.61744769]
[1754577261190,6.97099096,3821.2,3820.5,2.61744769]
[1754577261349,4.354,3821.2,3820.2,3.001]
[1754577261548,4.354,3821.2,3820.3,2.09584344]
[1754577261753,4.351,3821.4,3821.1,2.61704657]
[1754577261974,0.002,3821.5,3821.3,2.61688779]
[1754577262172,0.002,3821.5,3821.4,2.61684199]
[1754577262373,0.002,3821.5,3821.4,4.50006707]
[1754577262789,0.002,3821.5,3821.4,4.99463548]
[1754577263087,0.002,3821.5,3821.4,29.43763007]
[1754577263385,0.002,3821.5,3821.4,23.06296307]
[1754577263982,0.002,3821.5,3821.4,22.11496307]
[1754577264184,0.002,3821.5,3821.4,20.88826307]
[1754577264675,0.002,3821.5,3821.4,23.88826307]
[1754577264870,0.002,3821.5,3821.4,15.72964707]
[1754577265080,0.002,3821.5,3821.4,11.22827707]
[1754577266166,0.002,3822.2,3821.8,2.6165681]
[1754577266373,0.002,3822.2,3822.1,18.74639715]
[1754577266593,0.002,3822.2,3822.1,21.85706415]
[1754577266794,0.002,3822.2,3822.1,22.77426415]
[1754577266995,0.002,3822.6,3822.5,2.61608894]
[1754577267196,0.002,3822.6,3822.5,17.89157594]
[1754577267493,0.002,3822.6,3822.5,19.33353994]
[1754577267696,0.002,3822.6,3822.5,13.11942894]
[1754577268197,0.002,3822.6,3822.5,12.08062194]
[1754577268362,0.002,3822.6,3822.5,12.28252362]
[1754577268565,0.002,3822.6,3822.5,4.83781062]
[1754577268762,0.002,3822.6,3822.5,5.49760494]
[1754577268962,0.002,3822.6,3822.5,2.74728894]
[1754577269178,0.002,3822.6,3822.5,0.1312]
[1754577269973,0.957,3822.6,3822.5,0.1312]
[1754577270787,0.002,3822.6,3822.5,0.1312]
[1754577271115,0.002,3822.6,3822.5,2.74728894]
[1754577271473,0.002,3822.6,3822.5,0.1312]
[1754577271703,0.002,3822.6,3822.5,2.74728894]
[1754577271940,0.002,3822.6,3822.5,36.31158906]
[1754577272136,0.002,3822.6,3822.5,31.12868906]
[1754577272852,0.002,3823.4,3823.3,2.61554154]
[1754577273021,0.002,3823.4,3823.3,53.07857596]
[1754577273217,0.002,3823.4,3823.3,47.41038824]
[1754577273523,10.616,3825.2,3824.5,2.61472087]
[1754577273524,0.4801,3824.9,3824.5,2.61472087]
[1754577273723,0.4749,3825.0,3824.5,2.61472087]
[1754577273901,0.4801,3825.3,3824.5,2.61472087]
[1754577274105,0.4801,3825.6,3824.5,0.4691]
[1754577274366,0.4801,3825.6,3824.5,22.51086787]
[1754577274505,14.5,3825.6,3824.5,12.68096087]
[1754577274705,14.5,3825.6,3824.5,14.94655073]
[1754577274946,0.4749,3825.7,3824.5,14.94655073]
[1754577275151,0.4801,3825.5,3824.5,5.34941073]
[1754577275410,0.4801,3825.5,3824.5,8.62057173]
[1754577275563,0.4801,3825.5,3824.5,4.88031073]
[1754577275920,0.4749,3825.3,3824.5,4.88031073]
[1754577276222,0.4801,3825.2,3824.5,4.88031073]
[1754577276856,0.4749,3825.3,3824.5,5.34941073]
[1754577277064,0.4749,3825.3,3824.5,11.86677573]
[1754577277270,0.4801,3825.6,3824.5,11.86677573]
[1754577277580,0.4801,3825.6,3824.5,11.18618573]
[1754577277718,14.5,3825.9,3824.7,3.0]
[1754577277926,0.4801,3826.1,3825.2,2.61417591]
[1754577278166,0.4801,3826.1,3825.3,4.319]
[1754577278455,0.4749,3826.0,3825.4,4.318]
[1754577278619,0.4801,3825.9,3825.6,2.61395419]
[1754577278823,0.4801,3825.9,3825.7,2.61384907]
[1754577279061,0.955,3825.8,3824.8,13.40738454]
[1754577279355,0.955,3825.7,3825.0,2.61437908]
[1754577279533,0.4801,3826.0,3825.3,2.61416449]
[1754577279729,3.09380221,3826.0,3825.3,2.61416449]
[1754577279943,0.4801,3826.0,3825.4,2.61408923]
[1754577280135,0.4801,3826.0,3825.4,2.61409755]
[1754577280443,0.4801,3826.0,3825.4,2.61408419]
[1754577280818,0.4801,3826.0,3824.8,13.59913442]
[1754577281024,0.4801,3826.0,3823.6,3.16533546]
[1754577281025,14.5,3826.2,3825.3,13.13003442]
[1754577281256,4.313,3827.0,3825.4,4.313]
[1754577281257,0.955,3825.9,3825.4,4.313]
[1754577281440,0.955,3825.9,3825.6,2.61395935]
[1754577281644,2.61350405,3826.3,3825.6,2.61395935]
[1754577281843,0.955,3825.8,3825.1,4.311]
[1754577282041,0.4801,3825.7,3825.1,2.61429574]
[1754577282552,2.61403926,3825.5,3825.1,4.313]
[1754577282752,4.9726877,3826.2,3825.1,4.313]
[1754577282956,0.1304,3826.0,3825.2,4.312]
[1754577283168,1.84402027,3826.1,3825.6,0.1304]
[1754577283338,2.61376408,3825.9,3825.8,0.1304]
[1754577283548,3.6496786,3825.9,3825.4,0.1304]
[1754577283857,0.955,3825.8,3824.8,4.31]
[1754577284041,2.61415891,3825.4,3825.1,0.1304]
[1754577284375,2.61422697,3825.3,3825.1,0.1304]
[1754577284679,2.61424239,3825.2,3825.1,0.1304]
[1754577284883,0.1304,3825.6,3825.1,0.1304]
[1754577285042,7.9430072,3825.9,3823.0,0.98430604]
[1754577285043,2.61466444,3824.6,3823.0,0.98430604]
[1754577285364,0.4801,3824.6,3823.6,3.0]
[1754577285532,3.09480756,3824.6,3823.8,2.61518879]
[1754577285732,2.61491102,3824.3,3823.6,7.318]
[1754577285953,3.56998439,3824.2,3823.6,4.25488691]
[1754577286162,3.09509437,3824.1,3823.3,2.61551909]
[1754577286325,3.09509437,3824.1,3823.2,4.318]
[1754577286326,0.4749,3824.1,3821.8,0.785504]
[1754577286533,0.4801,3824.6,3821.9,19.98144342]
[1754577286534,2.61544885,3823.5,3821.9,19.98144342]
[1754577286731,2.61552947,3823.4,3822.6,3.0]
[1754577287045,3.09544116,3823.6,3822.8,2.61586344]
[1754577287353,0.4801,3823.6,3822.9,0.71944449]
[1754577287558,0.4801,3823.6,3823.0,2.61574679]
[1754577287733,0.4801,3823.6,3823.2,2.61555462]
[1754577287933,0.4801,3823.6,3822.9,0.69328634]
[1754577287934,0.002,3823.8,3823.3,2.6155293]
[1754577288152,0.002,3823.8,3823.4,0.26155293]
[1754577288328,0.955,3823.7,3823.4,0.26155293]
[1754577288537,3.57034529,3823.6,3822.8,2.61587632]
[1754577288735,3.57034529,3823.6,3822.5,5.61602458]
[1754577288736,3.57034529,3823.6,3822.9,2.61580614]
[1754577289063,0.002,3823.8,3823.0,13.704462]
[1754577289261,0.002,3823.8,3823.4,2.6154111]
[1754577289449,0.002,3823.8,3823.3,2.61552241]
[1754577289775,0.002,3823.8,3823.7,2.61526793]
[1754577291317,0.002,3823.8,3823.7,3.08436793]
[1754577291615,0.002,3823.8,3823.7,2.61526793]
[1754577293235,0.002,3823.8,3823.7,18.40753395]
[1754577293527,0.002,3823.8,3823.7,16.55564195]
[1754577293737,0.002,3823.8,3823.7,16.08854195]
[1754577294093,0.002,3823.8,3823.7,17.34344895]
[1754577294297,0.002,3823.8,3823.7,15.97448293]
[1754577295047,0.002,3823.8,3823.7,19.15816093]
[1754577295431,0.002,3823.8,3823.7,13.85189193]
[1754577295618,0.002,3824.2,3824.1,2.61499437]
[1754577295834,0.002,3824.2,3824.1,33.35805123]
[1754577296152,0.002,3824.2,3824.1,34.74629123]
[1754577296300,0.002,3824.2,3824.1,34.34333423]
[1754577296502,0.002,3824.2,3824.1,33.12219023]
[1754577297156,0.002,3824.2,3824.1,35.76122023]
[1754577297311,0.002,3824.2,3824.1,25.64726223]
[1754577297645,0.002,3824.2,3824.1,25.49288423]
[1754577298041,0.002,3824.2,3824.1,23.30352823]
[1754577298200,0.002,3824.2,3824.1,25.65846123]
[1754577298400,0.002,3824.2,3824.1,21.85536123]
[1754577298606,0.002,3824.2,3824.1,26.06795323]
[1754577298801,0.002,3824.2,3824.1,25.84415123]
[1754577299208,0.002,3824.2,3824.1,29.32010023]
[1754577299651,0.002,3824.2,3824.1,29.75320023]
[1754577300154,0.002,3824.2,3824.1,39.43125723]
[1754577300308,0.002,3824.6,3824.5,2.61472087]
[1754577300510,0.6300072,3825.9,3825.7,2.61384475]
[1754577300511,0.4323,3825.9,3825.7,2.61384475]
[1754577300733,0.894,3825.8,3825.5,2.61402913]
[1754577300936,0.894,3825.7,3825.5,2.61402913]
[1754577301135,0.894,3825.6,3825.5,2.61402913]
[1754577301542,0.894,3825.6,3825.3,2.61412229]
[1754577301761,14.5,3826.5,3825.2,4.285]
[1754577301762,0.894,3825.5,3825.2,4.285]
[1754577301958,2.61372188,3826.0,3825.3,2.61417405]
[1754577302160,0.894,3825.4,3825.2,2.61421614]
[1754577302376,0.894,3825.4,3825.0,4.281]
[1754577302524,0.894,3825.3,3824.7,4.282]
[1754577302724,0.894,3825.3,3824.9,2.6144463]
[1754577303240,0.894,3825.2,3825.0,2.61435701]
[1754577303423,0.4617,3825.1,3825.0,2.61435701]
[1754577303779,0.4323,3825.1,3824.6,3.0]
[1754577303955,4.281,3826.0,3824.6,3.0]
[1754577303956,0.894,3825.0,3824.6,3.0]
[1754577304160,0.9136714,3824.9,3824.2,2.61490262]
[1754577304461,0.894,3824.8,3824.2,2.61490262]
[1754577304658,0.894,3824.7,3824.2,3.0]
[1754577304859,0.894,3824.6,3824.1,3.0]
[1754577305184,0.55,3825.8,3824.2,0.4939]
[1754577305185,0.4323,3825.3,3824.2,0.4939]
[1754577305519,0.4617,3825.2,3824.3,4.279]
[1754577305677,0.4617,3825.2,3825.1,0.1304]
[1754577306039,1.01298089,3825.2,3825.1,0.1304]
[1754577306226,1.44528089,3825.2,3825.1,0.1304]
[1754577307031,0.894,3825.2,3825.1,0.1304]
[1754577307258,3.50797056,3825.6,3825.1,0.1304]
[1754577307569,0.55117736,3825.5,3825.1,0.1304]
[1754577307727,0.55117736,3825.5,3825.0,2.61437397]
[1754577307728,0.55117736,3825.4,3825.0,2.61437397]
[1754577307933,0.55117736,3825.3,3825.0,2.61437397]
[1754577308176,0.894,3825.4,3825.3,0.1304]
[1754577308371,0.4617,3825.4,3825.2,2.6141921]
[1754577308679,0.4323,3825.4,3825.2,0.1304]
[1754577308857,0.894,3825.3,3825.2,0.1304]
[1754577309178,0.894,3825.8,3825.2,0.1304]
[1754577309390,4.279,3826.0,3825.7,0.1304]
[1754577309567,5.60916306,3826.0,3825.7,0.1304]
[1754577309766,5.60916306,3826.0,3825.3,2.61416084]
[1754577309767,0.002,3826.3,3825.4,2.61410571]
[1754577309977,0.002,3826.3,3826.1,0.1304]
[1754577310600,0.002,3826.3,3826.2,2.61355914]
[1754577311867,0.002,3826.3,3826.2,3.23785914]
[1754577312065,0.002,3826.3,3826.2,6.69709473]
[1754577312268,1e-08,3826.3,3826.2,28.6270564]
[1754577312465,1e-08,3826.3,3826.2,9.3429414]
[1754577312671,1e-08,3826.3,3826.2,11.7432514]
[1754577313393,1e-08,3826.3,3826.2,13.6191674]